bitfinex-derivatives/quotes_BNBF0:USTF0_20250529
["timestamp","ask_amount","ask_price","bid_price","bid_amount"]
[1748522903843,0.29242331,683.94,682.87,0.363]
[1748522904037,0.99916995,683.93,682.87,0.363]
[1748522904242,0.99916995,683.92,682.87,0.363]
[1748522904439,0.99917286,683.91,682.87,0.363]
[1748522904639,0.99917286,683.9,682.87,0.363]
[1748522904838,0.99917286,683.89,682.87,0.363]
[1748522905043,0.99917286,683.88,682.87,0.363]
[1748522905238,0.99917286,683.87,682.87,0.363]
[1748522905439,0.99918934,683.86,682.87,0.363]
[1748522905638,0.99918934,683.85,682.87,0.363]
[1748522905938,0.99918934,683.84,682.87,0.363]
[1748522906142,0.99918934,683.83,682.87,0.363]
[1748522906343,0.99920741,683.82,682.87,0.363]
[1748522906539,0.9992072,683.81,682.87,0.363]
[1748522906739,0.9992072,683.8,682.87,0.363]
[1748522906943,0.9992072,683.79,682.87,0.363]
[1748522907244,0.9992072,683.78,682.87,0.363]
[1748522907438,0.9992072,683.77,682.87,0.363]
[1748522907639,0.9992072,683.76,682.87,0.363]
[1748522907842,0.9992072,683.75,682.87,0.363]
[1748522908042,0.9992072,683.74,682.87,0.363]
[1748522908242,0.99926306,683.73,682.87,0.363]
[1748522908448,0.99933428,683.72,682.87,0.363]
[1748522908642,0.99933428,683.71,682.87,0.363]
[1748522908945,0.99933428,683.7,682.87,0.363]
[1748522909147,0.29242331,683.94,682.87,0.363]
[1748522909346,0.99932603,683.93,682.87,0.363]
[1748522909546,1.29175789,683.92,682.87,0.363]
[1748522909747,0.99932603,683.91,682.87,0.363]
[1748522909947,0.99932603,683.9,682.87,0.363]
[1748522910149,0.99932603,683.89,682.87,0.363]
[1748522910349,0.99932603,683.88,682.87,0.363]
[1748522910546,0.99932603,683.87,682.87,0.363]
[1748522910751,0.99932603,683.86,682.87,0.363]
[1748522910952,0.99932603,683.85,682.87,0.363]
[1748522911151,0.99932603,683.84,682.87,0.363]
[1748522911350,0.99932603,683.83,682.87,0.363]
[1748522911548,0.99932603,683.82,682.87,0.363]
[1748522911745,0.29243186,683.92,682.87,0.363]
[1748522911746,0.99932603,683.81,682.87,0.363]
[1748522911946,0.29243186,683.92,682.87,0.363]
[1748522911947,0.99940694,683.8,682.87,0.363]
[1748522912248,0.99940694,683.79,682.87,0.363]
[1748522912447,0.99943119,683.78,682.87,0.363]
[1748522912746,0.99943119,683.77,682.87,0.363]
[1748522912947,0.99943119,683.76,682.87,0.363]
[1748522913146,0.99943119,683.75,682.87,0.363]
[1748522913349,0.9994705,683.74,682.87,0.363]
[1748522913554,0.9994705,683.73,682.87,0.363]
[1748522913851,0.9994705,683.72,682.87,0.363]
[1748522914052,0.9994705,683.71,682.87,0.363]
[1748522914351,0.99945835,683.7,682.87,0.363]
[1748522914552,0.99957177,683.69,682.87,0.363]
[1748522914753,0.99957177,683.68,682.87,0.363]
[1748522915054,0.99957177,683.67,682.87,0.363]
[1748522915253,0.99957177,683.66,682.87,0.363]
[1748522915556,0.99958816,683.65,682.87,0.363]
[1748522915754,0.99958816,683.64,682.87,0.363]
[1748522915950,0.99958816,683.63,682.87,0.363]
[1748522916255,0.99958816,683.62,682.87,0.363]
[1748522916550,0.99958816,683.61,682.87,0.363]
[1748522916752,0.99958816,683.6,682.87,0.363]
[1748522916951,0.99965426,683.59,682.87,0.363]
[1748522917151,0.29243186,683.92,682.87,0.363]
[1748522917349,1.00024559,683.91,682.87,0.363]
[1748522917554,1.00027157,683.9,682.87,0.363]
[1748522917752,1.00028579,683.89,682.87,0.363]
[1748522917950,0.29243186,683.92,682.87,0.363]
[1748522917951,1.00028579,683.88,682.87,0.363]
[1748522918250,1.00028579,683.87,682.87,0.363]
[1748522918454,1.00031348,683.86,682.87,0.363]
[1748522918652,1.00031348,683.85,682.87,0.363]
[1748522918856,1.00031348,683.84,682.87,0.363]
[1748522919057,1.00031348,683.83,682.87,0.363]
[1748522919257,1.00031348,683.82,682.87,0.363]
[1748522919458,1.00031348,683.81,682.87,0.363]
[1748522919653,0.29243186,683.92,682.87,0.363]
[1748522919860,1.00033669,683.91,682.87,0.363]
[1748522920055,1.00033669,683.9,682.87,0.363]
[1748522920359,1.00033669,683.89,682.87,0.363]
[1748522920657,1.00033669,683.88,682.87,0.363]
[1748522920857,1.00033669,683.87,682.87,0.363]
[1748522921053,1.00033669,683.86,682.87,0.363]
[1748522921255,1.00033669,683.85,682.87,0.363]
[1748522921459,0.29243186,683.92,682.87,0.363]
[1748522921460,1.00033669,683.84,682.87,0.363]
[1748522921659,0.29243186,683.92,682.87,0.363]
[1748522921660,1.00033669,683.83,682.87,0.363]
[1748522921860,0.29243186,683.92,682.87,0.363]
[1748522922062,1.00033327,683.91,682.87,0.363]
[1748522922355,1.00033327,683.9,682.87,0.363]
[1748522922558,1.00033569,683.89,682.87,0.363]
[1748522922754,0.29243186,683.92,682.87,0.363]
[1748522922954,1.00034384,683.91,682.87,0.363]
[1748522923257,1.00034384,683.9,682.87,0.363]
[1748522923456,1.00034384,683.89,682.87,0.363]
[1748522923760,1.00034384,683.88,682.87,0.363]
[1748522923956,1.00051996,683.87,682.7,0.29295444]
[1748522924156,1.00051996,683.86,682.7,0.29295444]
[1748522924360,1.00051996,683.85,682.7,0.29295444]
[1748522924561,1.00051996,683.84,682.7,0.29295444]
[1748522924758,1.00051996,683.83,682.7,0.29295444]
[1748522924962,1.00051996,683.82,682.7,0.29295444]
[1748522925157,0.29243186,683.92,682.7,0.29295444]
[1748522925458,1.00050919,683.91,682.7,0.29295444]
[1748522925762,1.00050919,683.9,682.7,0.29295444]
[1748522926058,1.00050919,683.89,682.7,0.29295444]
[1748522926362,1.00050454,683.88,682.7,0.29295444]
[1748522926659,1.00046822,683.87,682.71,0.476]
[1748522926862,1.00046822,683.86,682.71,0.476]
[1748522927064,1.00046822,683.85,682.71,0.476]
[1748522927265,1.00046822,683.84,682.71,0.476]
[1748522927465,1.00046822,683.83,682.71,0.476]
[1748522927665,1.00046822,683.82,682.71,0.476]
[1748522927865,0.29243186,683.92,682.71,0.476]
[1748522928063,1.00044721,683.91,682.71,0.476]
[1748522928261,0.29243186,683.92,682.71,0.476]
[1748522928461,1.00052156,683.91,682.71,0.476]
[1748522928664,0.29243186,683.92,682.71,0.476]
[1748522928665,1.00052156,683.9,682.71,0.476]
[1748522928865,1.00052156,683.89,682.71,0.476]
[1748522929066,1.00052156,683.88,682.79,0.46279435]
[1748522929266,1.00052156,683.87,682.81,0.46279435]
[1748522929467,0.29243186,683.92,682.71,0.476]
[1748522929468,1.00052156,683.86,682.82,0.46279435]
[1748522929666,1.00055127,683.85,682.82,0.46279435]
[1748522929966,1.00055098,683.84,682.82,0.46279435]
[1748522930161,1.00055098,683.83,682.82,0.46279435]
[1748522930363,1.00055098,683.83,682.71,0.476]
[1748522930364,1.00055098,683.82,682.81,0.46279435]
[1748522930563,1.00055098,683.81,682.81,0.46279435]
[1748522930767,1.00070053,683.8,682.82,0.46279435]
[1748522930965,1.00070053,683.8,682.71,0.476]
[1748522930966,1.00070053,683.79,682.78,0.46279435]
[1748522931266,0.29243186,683.92,682.8,0.46279435]
[1748522931267,1.00072979,683.78,682.8,0.46279435]
[1748522931567,1.00072979,683.77,682.8,0.46279435]
[1748522931762,1.00072979,683.76,682.8,0.46279435]
[1748522931962,1.00072979,683.75,682.8,0.46279435]
[1748522932162,1.00072979,683.74,682.82,0.46279435]
[1748522932359,1.00071854,683.73,682.82,0.46279435]
[1748522932564,1.00071854,683.72,682.82,0.46279435]
[1748522932766,1.00072343,683.71,682.82,0.46279435]
[1748522932970,1.00072343,683.7,682.81,0.46279435]
[1748522933166,1.00072343,683.69,682.87,0.46279435]
[1748522933466,1.00072734,683.68,682.87,0.46279435]
[1748522933670,1.00072734,683.67,682.87,0.46279435]
[1748522933970,0.29243186,683.92,682.87,0.46279435]
[1748522934167,1.00073627,683.91,682.87,0.46279435]
[1748522934370,1.00074138,683.9,682.87,0.46279435]
[1748522934571,1.00074384,683.89,682.88,0.46279435]
[1748522934772,1.00074384,683.88,682.88,0.46279435]
[1748522935070,1.00074147,683.87,682.88,0.46279435]
[1748522935271,1.00074147,683.86,682.88,0.46279435]
[1748522935468,1.00074147,683.85,682.88,0.46279435]
[1748522935667,1.00074147,683.84,682.88,0.46279435]
[1748522935872,1.00076141,683.83,682.88,0.46279435]
[1748522936173,1.00076141,683.82,682.89,0.46279435]
[1748522936472,1.00075801,683.81,682.93,0.46279435]
[1748522936669,0.29243186,683.92,682.93,0.46279435]
[1748522936867,1.00077148,683.91,682.93,0.46279435]
[1748522937071,1.00077148,683.9,682.93,0.46279435]
[1748522937272,1.00077148,683.89,682.93,0.46279435]
[1748522937469,0.29243186,683.92,682.93,0.46279435]
[1748522937470,1.00078765,683.88,682.93,0.46279435]
[1748522937672,1.00081724,683.87,682.8,0.46279435]
[1748522937873,1.00081724,683.86,682.8,0.46279435]
[1748522938072,1.00082022,683.85,682.8,0.46279435]
[1748522938269,1.00082022,683.84,682.81,0.46279435]
[1748522938470,1.00082928,683.83,682.81,0.46279435]
[1748522938673,1.00082928,683.82,682.81,0.46279435]
[1748522938872,1.00082928,683.81,682.8,0.46279435]
[1748522939073,1.00082928,683.8,682.8,0.46279435]
[1748522939374,1.00082928,683.79,682.81,0.46279435]
[1748522939573,1.00082928,683.78,682.81,0.46279435]
[1748522939771,1.00082928,683.77,682.81,0.46279435]
[1748522939975,1.00082928,683.76,682.81,0.46279435]
[1748522940173,1.00082928,683.76,682.71,0.476]
[1748522940174,1.00082928,683.75,682.83,0.46279435]
[1748522940377,1.00082928,683.74,682.79,0.46279435]
[1748522940676,1.00082928,683.73,682.79,0.46279435]
[1748522940885,0.29243186,683.92,682.79,0.46279435]
[1748522941173,1.00141163,683.91,682.82,0.46279435]
[1748522941372,1.00141163,683.9,682.82,0.46279435]
[1748522941577,1.00141163,683.89,682.82,0.46279435]
[1748522941778,1.00141163,683.88,682.82,0.46279435]
[1748522941979,1.00141163,683.87,682.82,0.46279435]
[1748522942274,1.00141163,683.86,682.82,0.46279435]
[1748522942478,1.00141163,683.85,682.82,0.46279435]
[1748522942680,1.00136115,683.84,682.82,0.46279435]
[1748522942877,1.00136115,683.83,682.82,0.46279435]
[1748522943078,1.00136115,683.82,682.83,0.46279435]
[1748522943277,1.00136115,683.81,682.83,0.46279435]
[1748522943477,1.00136115,683.8,682.83,0.46279435]
[1748522943674,0.29243186,683.92,682.83,0.46279435]
[1748522943977,1.00138683,683.91,682.83,0.46279435]
[1748522944178,1.001401,683.9,682.83,0.46279435]
[1748522944378,1.00139926,683.89,682.82,0.46279435]
[1748522944577,1.00136518,683.88,682.82,0.46279435]
[1748522944773,0.29243186,683.92,682.81,0.46279435]
[1748522944978,1.00136529,683.91,682.81,0.46279435]
[1748522945176,1.00136529,683.9,682.8,0.46279435]
[1748522945374,1.00136529,683.89,682.8,0.46279435]
[1748522945578,1.00136529,683.88,682.8,0.46279435]
[1748522945775,1.00136529,683.87,682.8,0.46279435]
[1748522945973,0.29243186,683.92,682.8,0.46279435]
[1748522946173,1.00141394,683.91,682.81,0.46279435]
[1748522946377,1.00141394,683.9,682.81,0.46279435]
[1748522946578,1.00145252,683.89,682.81,0.46279435]
[1748522946779,1.00145252,683.88,682.81,0.46279435]
[1748522946983,1.00145252,683.87,682.81,0.46279435]
[1748522947280,1.00145252,683.87,682.71,0.476]
[1748522947281,1.00145252,683.86,682.78,0.46279435]
[1748522947580,1.00145252,683.86,682.71,0.476]
[1748522947581,1.0014706,683.85,682.85,0.46279435]
[1748522947780,1.00164191,683.84,682.85,0.46279435]
[1748522947979,1.00164191,683.83,682.85,0.46279435]
[1748522948179,0.29243186,683.92,682.85,0.46279435]
[1748522948485,1.00178463,683.91,682.85,0.46279435]
[1748522948779,1.00178463,683.9,682.85,0.46279435]
[1748522948983,1.00178463,683.89,682.86,0.46279435]
[1748522949279,1.00180709,683.88,682.86,0.46279435]
[1748522949483,0.29243186,683.92,682.86,0.46279435]
[1748522949983,1.00193946,683.91,682.85,0.46279435]
[1748522950184,1.00193946,683.9,682.9,0.46279435]
[1748522950480,1.00207867,683.89,682.9,0.46279435]
[1748522950683,1.00207867,683.88,682.9,0.46279435]
[1748522950880,1.00207867,683.87,682.9,0.46279435]
[1748522951084,0.29243186,683.92,682.89,0.46279435]
[1748522951281,1.00210313,683.91,682.89,0.46279435]
[1748522951481,1.00210313,683.9,682.9,0.46279435]
[1748522951682,1.00229336,683.89,682.9,0.46279435]
[1748522951885,1.00229336,683.88,682.9,0.46279435]
[1748522952087,1.00231378,683.87,682.9,0.46279435]
[1748522952288,0.29243186,683.92,682.9,0.46279435]
[1748522952585,1.0025277,683.91,682.85,0.46279435]
[1748522952783,0.29243186,683.92,682.85,0.46279435]
[1748522952982,1.0025431,683.91,682.85,0.46279435]
[1748522953186,1.00254388,683.9,682.85,0.46279435]
[1748522953485,1.00254388,683.89,682.85,0.46279435]
[1748522953681,1.00254388,683.88,682.85,0.46279435]
[1748522953884,1.00254388,683.87,682.85,0.46279435]
[1748522954087,0.29243186,683.92,682.85,0.46279435]
[1748522954282,1.00280758,683.91,682.85,0.46279435]
[1748522954488,1.00280758,683.9,682.85,0.46279435]
[1748522954686,1.00312894,683.89,682.87,0.46279435]
[1748522954884,1.00312958,683.88,682.87,0.46279435]
[1748522955183,1.00312958,683.87,682.87,0.46279435]
[1748522955389,1.00312958,683.86,682.87,0.46279435]
[1748522955585,1.00312958,683.85,682.87,0.46279435]
[1748522955788,1.00312958,683.84,682.87,0.46279435]
[1748522955989,1.00312958,683.83,682.87,0.46279435]
[1748522956289,0.29243186,683.92,682.87,0.46279435]
[1748522956789,1.00379366,683.91,682.87,0.46279435]
[1748522956989,1.00379366,683.9,682.89,0.46279435]
[1748522957289,1.00379366,683.89,682.94,0.46279435]
[1748522957487,1.00379366,683.88,682.93,0.46279435]
[1748522957691,1.00379366,683.87,682.93,0.46279435]
[1748522957883,0.29243186,683.92,682.93,0.46279435]
[1748522958088,1.00401467,683.91,682.93,0.46279435]
[1748522958288,0.29243186,683.92,682.93,0.46279435]
[1748522958289,1.00401467,683.9,682.93,0.46279435]
[1748522958589,1.00401467,683.89,682.93,0.46279435]
[1748522958788,1.00401467,683.88,682.93,0.46279435]
[1748522958992,1.00401467,683.87,682.93,0.46279435]
[1748522959192,1.00405803,683.86,682.93,0.46279435]
[1748522959488,1.00414279,683.85,682.78,0.46279435]
[1748522959687,1.00414355,683.84,682.78,0.46279435]
[1748522959887,1.00414735,683.83,682.78,0.46279435]
[1748522960088,1.00414735,683.82,682.78,0.46279435]
[1748522960292,1.00414735,683.81,682.79,0.46279435]
[1748522960493,1.00414735,683.8,682.79,0.46279435]
[1748522960692,1.00430782,683.79,682.78,0.46279435]
[1748522960895,1.00430782,683.78,682.79,0.46279435]
[1748522961087,0.29243186,683.92,682.79,0.46279435]
[1748522961088,1.00447102,683.77,682.79,0.46279435]
[1748522961291,1.00447644,683.76,682.79,0.46279435]
[1748522961487,0.29243186,683.92,682.79,0.46279435]
[1748522961891,1.00451231,683.91,682.79,0.46279435]
[1748522962089,1.00451231,683.9,682.79,0.46279435]
[1748522962290,1.00451231,683.89,682.83,0.46279435]
[1748522962490,1.00451231,683.88,682.83,0.46279435]
[1748522962794,1.00451231,683.87,682.84,0.46279435]
[1748522962993,1.00451231,683.86,682.84,0.46279435]
[1748522963300,1.00451231,683.85,682.84,0.46279435]
[1748522963495,1.00451231,683.84,682.83,0.46279435]
[1748522963695,1.00466304,683.83,682.83,0.46279435]
[1748522963896,1.00466304,683.82,682.83,0.46279435]
[1748522964093,1.00466304,683.81,682.83,0.46279435]
[1748522964399,1.0047034,683.8,682.83,0.46279435]
[1748522964698,1.00469414,683.79,682.83,0.46279435]
[1748522964998,1.00469525,683.78,682.83,0.46279435]
[1748522965199,1.00469525,683.77,682.83,0.46279435]
[1748522965397,1.00469525,683.76,682.83,0.46279435]
[1748522965598,1.00469525,683.75,682.83,0.46279435]
[1748522965795,1.00469525,683.74,682.83,0.46279435]
[1748522966101,0.29243186,683.92,682.83,0.46279435]
[1748522966501,1.00478355,683.91,682.84,0.46279435]
[1748522966698,1.00478355,683.9,682.84,0.46279435]
[1748522966901,1.00478355,683.89,682.84,0.46279435]
[1748522967198,0.29243186,683.92,682.83,0.46279435]
[1748522967601,1.00466217,683.91,682.86,0.46279435]
[1748522967895,1.00466217,683.9,682.86,0.46279435]
[1748522968104,1.00461688,683.89,682.86,0.46279435]
[1748522968402,1.00461688,683.88,682.87,0.46279435]
[1748522968700,1.00461688,683.87,682.87,0.46279435]
[1748522968896,1.00461688,683.86,682.85,0.46279435]
[1748522969198,1.00456835,683.85,682.98,0.46279435]
[1748522969398,1.00456835,683.84,682.98,0.46279435]
[1748522969599,1.00456835,683.84,682.81,0.484]
[1748522969600,1.00456835,683.83,682.94,0.46279435]
[1748522969795,1.00456835,683.83,682.81,0.484]
[1748522969796,1.00456835,683.82,682.81,0.94679435]
[1748522969998,1.00456835,683.81,682.81,0.94679435]
[1748522970196,1.00456835,683.8,682.81,0.94679435]
[1748522970497,1.00456835,683.79,682.81,0.94679435]
[1748522970701,1.00445412,683.78,682.81,0.94679435]
[1748522970897,1.00445412,683.77,682.81,0.94679435]
[1748522971201,1.00446268,683.76,682.81,0.484]
[1748522971401,1.00446268,683.75,682.81,0.484]
[1748522971602,1.00445732,683.74,682.81,0.484]
[1748522971803,1.00445691,683.73,682.81,0.484]
[1748522972001,1.00445691,683.72,682.81,0.484]
[1748522972301,1.00439509,683.71,682.81,0.484]
[1748522972601,1.00439509,683.7,682.81,0.484]
[1748522972795,1.00439509,683.69,682.81,0.484]
[1748522972999,1.0043327,683.68,682.81,0.484]
[1748522973200,0.29243186,683.92,682.81,0.484]
[1748522973398,1.00433079,683.91,682.81,0.484]
[1748522973702,1.00433079,683.9,682.81,0.484]
[1748522973902,1.00433079,683.89,682.81,0.484]
[1748522974199,1.00441842,683.88,682.81,0.484]
[1748522974402,1.00441842,683.87,682.81,0.484]
[1748522974602,0.29243186,683.92,682.81,0.484]
[1748522975099,1.0043931,683.91,682.81,0.484]
[1748522975299,1.0043931,683.9,682.81,0.484]
[1748522975501,0.29243186,683.92,682.81,0.484]
[1748522975502,1.0043931,683.89,682.81,0.484]
[1748522975699,0.29243186,683.92,682.82,0.46279435]
[1748522975700,1.00410344,683.88,682.82,0.46279435]
[1748522975901,1.00410344,683.87,682.82,0.46279435]
[1748522976103,0.29243186,683.92,682.84,0.46279435]
[1748522976303,0.29243186,683.92,682.82,0.46279435]
[1748522976504,0.29243186,683.92,682.85,0.46279435]
[1748522976700,1.00410295,683.91,682.85,0.46279435]
[1748522976901,1.00410295,683.9,682.85,0.46279435]
[1748522977105,1.00410295,683.89,682.85,0.46279435]
[1748522977302,0.29243186,683.92,682.91,0.46279435]
[1748522977606,0.29243186,683.92,682.81,0.484]
[1748522977607,0.29243186,683.92,682.98,0.46279435]
[1748522978107,1.00392303,683.91,682.98,0.46279435]
[1748522978306,1.00392303,683.9,682.97,0.46279435]
[1748522978502,1.00392303,683.89,682.97,0.46279435]
[1748522978702,1.00392303,683.88,682.99,0.46279435]
[1748522978907,1.00392303,683.87,682.96,0.46279435]
[1748522979103,1.00392303,683.86,682.95,0.46279435]
[1748522979310,0.29243186,683.92,682.95,0.46279435]
[1748522979610,1.0038998,683.91,682.97,0.46279435]
[1748522979806,1.0038998,683.9,682.97,0.46279435]
[1748522980006,1.00376662,683.89,682.97,0.46279435]
[1748522980209,1.00376662,683.88,682.96,0.46279435]
[1748522980508,1.00376662,683.88,682.81,0.484]
[1748522980509,1.00375426,683.87,682.97,0.46279435]
[1748522980705,1.00375426,683.86,682.97,0.46279435]
[1748522980910,1.00375426,683.85,682.97,0.46279435]
[1748522981110,1.00375426,683.84,682.96,0.46279435]
[1748522981312,1.00374076,683.83,682.95,0.46279435]
[1748522981513,1.00374076,683.82,682.95,0.46279435]
[1748522981714,1.00374076,683.81,682.94,0.46279435]
[1748522981908,1.00374076,683.8,682.94,0.46279435]
[1748522982214,1.00374076,683.79,682.94,0.46279435]
[1748522982414,1.00374076,683.78,682.94,0.46279435]
[1748522982610,1.00374076,683.77,682.93,0.46279435]
[1748522982818,1.00374076,683.76,682.93,0.46279435]
[1748522983012,1.00359314,683.75,682.93,0.46279435]
[1748522983216,1.00359314,683.74,682.85,0.46279435]
[1748522983515,1.00359314,683.73,682.85,0.46279435]
[1748522983717,1.00359314,683.72,682.85,0.46279435]
[1748522984016,1.00359314,683.71,682.85,0.46279435]
[1748522984312,1.00347223,683.7,682.84,0.46279435]
[1748522984518,1.00347223,683.69,682.84,0.46279435]
[1748522984712,1.00347223,683.68,682.82,0.46279435]
[1748522984913,0.29243186,683.92,682.82,0.46279435]
[1748522985115,0.29243186,683.92,682.81,0.484]
[1748522985116,1.00344098,683.91,682.81,0.484]
[1748522985411,1.00344098,683.9,682.81,0.484]
[1748522985612,1.00343409,683.89,682.81,0.484]
[1748522985818,1.00343409,683.88,682.81,0.484]
[1748522986013,1.00343409,683.87,682.81,0.484]
[1748522986217,1.00342072,683.86,682.81,0.484]
[1748522986514,0.29243186,683.92,682.81,0.484]
[1748522986912,1.00340852,683.91,682.81,0.484]
[1748522987219,1.00340852,683.9,682.81,0.484]
[1748522987415,1.00340852,683.89,682.81,0.484]
[1748522987614,1.00340852,683.88,682.81,0.484]
[1748522987916,1.00340852,683.87,682.81,0.484]
[1748522988112,1.00337363,683.86,682.81,0.484]
[1748522988416,1.00337363,683.85,682.81,0.484]
[1748522988613,1.0033484,683.84,682.81,0.484]
[1748522988818,1.0033484,683.83,682.81,0.484]
[1748522989018,1.0033484,683.82,682.81,0.484]
[1748522989217,1.0033484,683.81,682.81,0.484]
[1748522989518,1.00333507,683.8,682.81,0.484]
[1748522989714,1.00333439,683.79,682.81,0.484]
[1748522989918,1.00333289,683.78,682.81,0.484]
[1748522990117,1.00333289,683.77,682.81,0.484]
[1748522990314,1.00333289,683.76,682.81,0.484]
[1748522990518,1.00333289,683.75,682.81,0.484]
[1748522990720,1.00333289,683.74,682.81,0.484]
[1748522991020,1.00333289,683.73,682.81,0.484]
[1748522991215,1.00334017,683.72,682.81,0.484]
[1748522991520,1.0033346,683.71,682.81,0.484]
[1748522991715,1.0033346,683.7,682.81,0.484]
[1748522991918,1.0033346,683.69,682.81,0.484]
[1748522992117,1.0033346,683.68,682.81,0.484]
[1748522992318,1.0033346,683.67,682.81,0.484]
[1748522992520,1.00338437,683.66,682.81,0.484]
[1748522992718,1.00338437,683.65,682.81,0.484]
[1748522992917,1.00338437,683.64,682.81,0.484]
[1748522993123,1.00339674,683.63,682.81,0.484]
[1748522993320,1.00339674,683.62,682.81,0.484]
[1748522993522,1.00339674,683.61,682.81,0.484]
[1748522993723,1.00339674,683.6,682.81,0.484]
[1748522993924,1.00339674,683.59,682.81,0.484]
[1748522994120,0.29243186,683.92,682.81,0.484]
[1748522994320,1.00339789,683.91,682.81,0.484]
[1748522994521,1.00340158,683.9,682.81,0.484]
[1748522994722,1.00340158,683.89,682.81,0.484]
[1748522995024,1.00340158,683.88,682.86,0.46279435]
[1748522995221,1.00340158,683.87,682.86,0.46279435]
[1748522995422,1.00340158,683.86,682.86,0.46279435]
[1748522995720,0.29243186,683.92,682.86,0.46279435]
[1748522995721,1.00340158,683.85,682.86,0.46279435]
[1748522996024,1.00339836,683.84,682.86,0.46279435]
[1748522996324,1.00340382,683.83,682.87,0.46279435]
[1748522996524,1.00340382,683.82,682.87,0.46279435]
[1748522996722,0.29243186,683.92,682.87,0.46279435]
[1748522996926,1.00343428,683.91,682.87,0.46279435]
[1748522997126,1.00343428,683.9,682.88,0.46279435]
[1748522997326,1.0034911,683.89,682.89,0.46279435]
[1748522997521,1.0034911,683.88,682.89,0.46279435]
[1748522997721,1.00362283,683.87,682.89,0.46279435]
[1748522997921,1.00362283,683.86,682.89,0.46279435]
[1748522998226,0.29243186,683.92,682.89,0.46279435]
[1748522998227,1.00362283,683.85,682.89,0.46279435]
[1748522998421,1.00362283,683.84,682.89,0.46279435]
[1748522998626,1.00362283,683.84,682.81,0.484]
[1748522998627,1.00362283,683.83,682.93,0.46279435]
[1748522998928,1.00362283,683.82,682.92,0.46279435]
[1748522999124,1.00362283,683.81,682.93,0.46279435]
[1748522999321,1.00362283,683.8,682.81,0.484]
[1748522999625,1.00381996,683.79,682.81,0.484]
[1748522999926,1.00383963,683.78,682.81,0.484]
[1748523000222,1.00383963,683.77,682.81,0.484]
[1748523000423,1.00383963,683.76,682.81,0.484]
[1748523000727,1.00383963,683.75,682.81,0.484]
[1748523000927,1.00392968,683.74,682.81,0.484]
[1748523001226,1.00396202,683.73,682.81,0.484]
[1748523001422,1.00396202,683.72,682.81,0.484]
[1748523001627,1.00396202,683.71,682.81,0.484]
[1748523001828,1.00425128,683.7,682.81,0.484]
[1748523002020,1.00425128,683.69,682.81,0.484]
[1748523002225,1.00425128,683.68,682.81,0.484]
[1748523002423,1.00425128,683.67,682.81,0.484]
[1748523002723,1.00435353,683.66,682.81,0.484]
[1748523002926,1.00435353,683.65,682.81,0.484]
[1748523003123,0.29243186,683.92,682.81,0.484]
[1748523003426,1.00434789,683.91,682.81,0.484]
[1748523003622,1.00434789,683.9,682.81,0.484]
[1748523003827,1.00434789,683.89,682.81,0.484]
[1748523004024,1.00434789,683.88,682.81,0.484]
[1748523004220,1.00434789,683.87,682.81,0.484]
[1748523004429,0.29243186,683.92,682.81,0.484]
[1748523004430,1.00435158,683.86,682.81,0.484]
[1748523004630,0.29243186,683.92,682.81,0.484]
[1748523004631,1.00434191,683.85,682.81,0.484]
[1748523004826,1.004342,683.84,682.81,0.484]
[1748523005023,1.004342,683.83,682.81,0.484]
[1748523005222,1.004342,683.82,682.81,0.484]
[1748523005528,1.004342,683.81,682.81,0.484]
[1748523005722,1.00433799,683.8,682.81,0.484]
[1748523005922,1.00433799,683.79,682.74,0.46279435]
[1748523006225,1.00432306,683.78,682.74,0.46279435]
[1748523006526,1.00432243,683.77,682.74,0.46279435]
[1748523006727,1.00432243,683.76,682.75,0.46279435]
[1748523006923,1.00432243,683.75,682.74,0.46279435]
[1748523007127,1.00435016,683.74,682.74,0.46279435]
[1748523007422,1.00435016,683.73,682.74,0.46279435]
[1748523007628,1.00435016,683.72,682.74,0.46279435]
[1748523007828,1.00435016,683.71,682.74,0.46279435]
[1748523008128,1.00435016,683.7,682.74,0.46279435]
[1748523008329,1.00435016,683.69,682.74,0.46279435]
[1748523008529,1.00435016,683.69,682.7,0.29295444]
[1748523008530,1.00435016,683.68,682.75,0.491]
[1748523008724,1.00435016,683.67,682.75,0.491]
[1748523008929,1.00435016,683.66,682.75,0.491]
[1748523009125,1.00435016,683.65,682.82,0.46279435]
[1748523009330,1.00435016,683.65,682.75,0.491]
[1748523009331,1.00435016,683.64,682.81,0.46279435]
[1748523009531,1.00435016,683.63,682.75,0.491]